fUST/lending_fUST_20250829
["ID","MTS","AMOUNT","RATE_DAILY","PERIOD"]
[381969590,1756459854624,-151.0,0.00037926,23]
[381969591,1756459854635,-151.0,0.00037926,23]
[381969592,1756459854645,-151.0,0.00037926,23]
[381969593,1756459854655,-900.0,0.00038,120]
[381969594,1756459854667,-480.0,0.00038065,10]
[381969595,1756459854679,-480.0,0.00038065,10]
[381969596,1756459854689,-480.0,0.00038065,10]
[381969597,1756459854699,-480.0,0.00038082,10]
[381969598,1756459854710,-480.0,0.00038082,10]
[381969599,1756459854720,-3853.09,0.00038082,10]
[381969600,1756459854729,-480.0,0.00038082,10]
[381969601,1756459854740,-826.56,0.00038082,10]
[381969602,1756459854750,-480.0,0.00038082,10]
[381969603,1756459854761,-1412.32,0.00038082,10]
[381969604,1756459854771,-480.0,0.00038082,10]
[381969605,1756459854781,-480.0,0.00038082,10]
[381969606,1756459854791,-480.0,0.00038082,10]
[381969607,1756459854801,-480.0,0.00038082,2]
[381969608,1756459854811,-480.0,0.00038082,10]
[381969609,1756459854821,-1414.16,0.00038082,10]
[381969610,1756459854832,-283.11274697,0.00038082,10]
[381969611,1756459854842,-480.0,0.00038082,10]
[381969612,1756459854852,-533.77,0.00038082,10]
[381969613,1756459854861,-480.0,0.00038082,10]
[381969614,1756459854871,-531.46550291,0.00038082,10]
[381969615,1756459854881,-480.0,0.00038082,10]
[381969616,1756459854891,-606.64,0.00038082,10]
[381969617,1756459854900,-480.0,0.00038082,10]
[381969618,1756459854910,-500.0,0.0003815,5]
[381969619,1756459854921,-425.57542551,0.00038327,2]
[381969620,1756459854931,-845.57753514,0.00038327,2]
[381969621,1756459854941,-1242.75802159,0.00038335,2]
[381969622,1756459854950,-480.0,0.00038339,10]
[381969623,1756459854960,-480.0,0.00038339,10]
[381969624,1756459854971,-480.0,0.00038339,10]
[381969625,1756459854981,-160.0,0.00038348,2]
[381969626,1756459854991,-1260.38916424,0.00038356,120]
[381969627,1756459855001,-480.0,0.00038356,10]
[381969628,1756459855012,-480.0,0.00038356,10]
[381969629,1756459855026,-3853.09,0.00038356,10]
[381969630,1756459855035,-480.0,0.00038356,10]
[381969631,1756459855046,-826.56,0.00038356,10]
[381969632,1756459855056,-480.0,0.00038356,10]
[381969633,1756459855066,-1412.32,0.00038356,10]
[381969634,1756459855076,-480.0,0.00038356,10]
[381969635,1756459855086,-382.72626247,0.00038356,10]
[381969636,1756459855096,-480.0,0.00038356,10]
[381969637,1756459855107,-480.0,0.00038356,2]
[381969638,1756459855117,-480.0,0.00038356,10]
[381969639,1756459855128,-1414.16,0.00038356,10]
[381969640,1756459855140,-1658.55,0.00038356,120]
[381969641,1756459855150,-480.0,0.00038356,10]
[381969642,1756459855161,-533.77,0.00038356,10]
[381969643,1756459855173,-480.0,0.00038356,10]
[381969644,1756459855183,-480.0,0.00038356,10]
[381969645,1756459855193,-606.64,0.00038356,10]
[381969646,1756459855203,-480.0,0.00038356,10]
[381969647,1756459855421,-162.940908,0.00038356,2]
[381969648,1756459855432,-600.0,0.000384,2]
[381969649,1756459855442,-150.212878,0.00038501,60]
[381969650,1756459855452,-345.61681833,0.00038613,10]
[381969651,1756459855461,-480.0,0.00038613,10]
[381969652,1756459855473,-480.0,0.00038613,10]
[381969653,1756459855483,-480.0,0.0003863,10]
[381969654,1756459855493,-480.0,0.0003863,10]
[381969655,1756459855504,-3853.09,0.0003863,10]
[381969656,1756459855513,-480.0,0.0003863,10]
[381969657,1756459855523,-826.56,0.0003863,10]
[381969658,1756459855533,-480.0,0.0003863,10]
[381969659,1756459855543,-1412.32,0.0003863,10]
[381969660,1756459855553,-480.0,0.0003863,10]
[381969661,1756459855563,-480.0,0.0003863,10]
[381969662,1756459855574,-480.0,0.0003863,2]
[381969663,1756459855583,-480.0,0.0003863,10]
[381969664,1756459855592,-1414.16,0.0003863,10]
[381969665,1756459855602,-200.1848129,0.0003863,10]
[381969666,1756459855612,-533.77,0.0003863,10]
[381969667,1756459855622,-480.0,0.0003863,10]
[381969668,1756459855631,-480.0,0.0003863,10]
[381969669,1756459855641,-606.64,0.0003863,10]
[381969670,1756459855651,-150.212878,0.0003869,60]
[381969671,1756459855661,-1000.0,0.00038698,5]
[381969672,1756459855676,-647.0,0.000388,2]
[381969673,1756459855686,-600.0,0.000388,2]
[381969674,1756459855696,-9267.93,0.0003886,60]
[381969675,1756459855707,-150.212878,0.0003888,60]
[381969676,1756459855716,-480.0,0.00038887,10]
[381969677,1756459855727,-480.0,0.00038887,10]
[381969678,1756459855738,-171.16716642,0.00038904,10]
[381969679,1756459855749,-480.0,0.00038904,10]
[381969680,1756459855759,-3853.09,0.00038904,10]
[381969681,1756459855771,-480.0,0.00038904,10]
[381969682,1756459855781,-826.56,0.00038904,10]
[381969683,1756459855790,-154.54078072,0.00038904,10]
[381969684,1756459855800,-1412.32,0.00038904,10]
[381969685,1756459855811,-480.0,0.00038904,10]
[381969686,1756459855824,-480.0,0.00038904,10]
[381969687,1756459855838,-480.0,0.00038904,2]
[381969688,1756459855848,-480.0,0.00038904,10]
[381969689,1756459855857,-1414.16,0.00038904,10]
[381969690,1756459855868,-1658.55,0.00038904,120]
[381969691,1756459855878,-533.77,0.00038904,10]
[381969692,1756459855889,-480.0,0.00038904,10]
[381969693,1756459855900,-480.0,0.00038904,10]
[381969694,1756459855909,-606.64,0.00038904,10]
[381969695,1756459855922,-200.0,0.0003896,51]
[381969696,1756459855932,-425.0872307,0.0003899,120]
[381969697,1756459855942,-500.0,0.00039,30]
[381969698,1756459855951,-890.48094778,0.00039,120]
[381969699,1756459855961,-417.15472785,0.00039,30]
[381969700,1756459855970,-845.57753514,0.00039,30]
[381969701,1756459855981,-500.0,0.00039,30]
[381969702,1756459855993,-500.0,0.00039,30]
[381969703,1756459856004,-217.30324474,0.00039,30]
[381969704,1756459856013,-500.0,0.00039,30]
[381969705,1756459856024,-216.21406313,0.00039,30]
[381969706,1756459856034,-160.0,0.00039,30]
[381969707,1756459856043,-500.0,0.00039,30]
[381969708,1756459856052,-500.0,0.00039,30]
[381969709,1756459856062,-300.0,0.00039,90]
[381969710,1756459856071,-232.6790651,0.00039,30]
[381969711,1756459856082,-189.69645233,0.00039059,7]
[381969712,1756459856091,-480.0,0.00039161,10]
[381969713,1756459856101,-480.0,0.00039161,10]
[381969714,1756459856111,-480.0,0.00039178,10]
[381969715,1756459856121,-3853.09,0.00039178,10]
[381969716,1756459856131,-480.0,0.00039178,10]
[381969717,1756459856142,-826.56,0.00039178,10]
[381969718,1756459856151,-1412.32,0.00039178,10]
[381969719,1756459856161,-480.0,0.00039178,10]
[381969720,1756459856171,-480.0,0.00039178,10]
[381969721,1756459856180,-480.0,0.00039178,2]
[381969722,1756459856189,-480.0,0.00039178,10]
[381969723,1756459856200,-1414.16,0.00039178,10]
[381969724,1756459856209,-533.77,0.00039178,10]
[381969725,1756459856223,-480.0,0.00039178,10]
[381969726,1756459856234,-480.0,0.00039178,10]
[381969727,1756459856244,-606.64,0.00039178,10]
[381969728,1756459856254,-4361.36621558,0.0003919,3]
[381969729,1756459856265,-600.0,0.000392,2]
[381969730,1756459856274,-786.98823365,0.00039246,5]
[381969731,1756459856285,-480.0,0.00039435,10]
[381969732,1756459856295,-480.0,0.00039435,10]
[381969733,1756459856305,-574.99158298,0.00039452,10]
[381969734,1756459856316,-3853.09,0.00039452,10]
[381969735,1756459856327,-257.26,0.00039452,10]
[381969736,1756459856336,-826.56,0.00039452,10]
[381969737,1756459856347,-480.0,0.00039452,10]
[381969738,1756459856356,-1412.32,0.00039452,10]
[381969739,1756459856367,-480.0,0.00039452,10]
[381969740,1756459856377,-365.93205708,0.00039452,2]
[381969741,1756459856387,-480.0,0.00039452,10]
[381969742,1756459856398,-1414.16,0.00039452,10]
[381969743,1756459856409,-1658.55,0.00039452,120]
[381969744,1756459856419,-533.77,0.00039452,10]
[381969745,1756459856428,-480.0,0.00039452,10]
[381969746,1756459856438,-480.0,0.00039452,10]
[381969747,1756459856448,-606.64,0.00039452,10]
[381969748,1756459856457,-800.0,0.00039498,7]
[381969749,1756459856468,-417.15472785,0.000395,120]
[381969750,1756459856477,-845.57753514,0.000395,120]
[381969751,1756459856488,-217.30324474,0.000395,120]
[381969752,1756459856498,-216.21406313,0.000395,120]
[381969753,1756459856509,-459.76,0.000395,7]
[381969754,1756459856519,-3861.95,0.000395,14]
[381969755,1756459856528,-232.6790651,0.000395,120]
[381969756,1756459856538,-238.0533201,0.000396,30]
[381969757,1756459856548,-517.03,0.000396,7]
[381969758,1756459856559,-601.28053103,0.000396,2]
[381969759,1756459856569,-480.0,0.00039709,10]
[381969760,1756459856578,-480.0,0.00039709,10]
[381969761,1756459856589,-3853.09,0.00039726,10]
[381969762,1756459856600,-826.56,0.00039726,10]
[381969763,1756459856610,-438.4864653,0.00039726,10]
[381969764,1756459856621,-1412.32,0.00039726,10]
[381969765,1756459856631,-480.0,0.00039726,10]
[381969766,1756459856642,-480.0,0.00039726,10]
[381969767,1756459856652,-1414.16,0.00039726,10]
[381969768,1756459856662,-533.77,0.00039726,10]
[381969769,1756459856677,-480.0,0.00039726,10]
[381969770,1756459856687,-564.57242126,0.00039726,10]
[381969771,1756459856698,-606.64,0.00039726,10]
[381969772,1756459856708,-300.0,0.00039735,90]
[381969773,1756459856722,-151.0,0.00039847,30]
[381969774,1756459856732,-1000.0,0.0003988,13]
[381969775,1756459856742,-1000.0,0.000399,13]
[381969776,1756459856752,-217.30324474,0.000399,7]
[381969777,1756459856762,-160.0,0.000399,7]
[381969778,1756459856771,-216.21406313,0.000399,7]
[381969779,1756459856780,-160.0,0.000399,7]
[381969780,1756459856788,-1242.75802159,0.000399,2]
[381969781,1756459856798,-258.3788776,0.000399,2]
[381969782,1756459856807,-1500.0,0.000399,31]
[381969783,1756459856817,-232.6790651,0.000399,7]
[381969784,1756459856827,-204.261286,0.000399,2]
[381969785,1756459856837,-150.6713272,0.00039973,5]
[381969786,1756459856845,-4361.36621558,0.0003998,3]
[381969787,1756459856854,-539.3621631,0.00039983,10]
[381969788,1756459856863,-445.80048202,0.00039983,10]
[381969789,1756459856871,-500.0,0.0003999,15]
[381969790,1756459856880,-43613.6621558,0.0003999,3]
[381969791,1756459856890,-296.72609167,0.00039999,31]
[381969792,1756459856899,-319.29918945,0.00039999,7]
[381969793,1756459856909,-327.93693887,0.00039999,31]
[381969794,1756459856992,-360.44305919,0.00039999,31]
[381969795,1756459857010,-1997857.57831644,0.0004,120]
[381969796,1756459857115,-354.55563415,0.0004,120]
[381969798,1756459901719,1175.16754124,0.00024204,2]
[381969802,1756460016239,162.940908,0.00013699,2]
[381969803,1756460739126,-247.45766194,0.00018909,2]
[381969804,1756460830318,-2281.62191176,0.00018799,2]
[381969813,1756460958141,-16270.8193853,0.00018412,2]
[381969814,1756460958164,-285.07892972,0.00018499,2]
[381969815,1756460958188,-5000.0,0.00018512,2]
[381969816,1756460958210,-300.0,0.00018999,2]
[381969817,1756460958232,-1200.0,0.00018999,2]
[381969818,1756460958253,-300.0,0.00018999,2]
[381969819,1756460958275,-300.0,0.00018999,2]
[381969820,1756460958296,-3000.0,0.000192,2]
[381969821,1756460958318,-285.07892968,0.00019703,2]
[381969822,1756460958337,-161.0,0.00020709,2]
[381969823,1756460958358,-4260.0,0.00020709,5]
[381969824,1756460958377,-285.07892968,0.00020907,2]
[381969825,1756460958398,-2156.0,0.00021242,2]
[381969826,1756460958422,-687.38868451,0.00022109,2]
[381969827,1756460958442,-285.07892968,0.0002211,2]
[381969828,1756460958463,-33847.0082001,0.00022629,2]
[381969829,1756460958484,-285.07892968,0.00023314,2]
[381969830,1756460958505,-355.96535969,0.00023414,2]
[381969831,1756460966207,-46.60566841,0.00023414,2]
[381969832,1756460974105,-166.64094213,0.00024864,2]
[381969834,1756461008309,176.59963435,0.00024863,120]
[381969874,1756461031987,-375.94028324,0.00024615,6]
[381969875,1756461031999,-647.09086643,0.00024615,6]
[381969904,1756461037836,-266.9869136,0.00024615,6]
[381969905,1756461037848,-291.300155,0.00024615,6]
[381969913,1756461037919,-3418.68178173,0.00024615,6]
[381969915,1756461037930,-796.639908,0.00025054,2]
[381969917,1756461037940,-219.633913,0.0002522,2]
[381969919,1756461037949,-387.956627,0.00025778,2]
[381969921,1756461037959,-232.6838453,0.00025862,2]
[381969923,1756461037968,-283.78850062,0.00026044,2]
[381969925,1756461037977,-220.30474346,0.00026957,2]
[381969927,1756461037987,-425.57542551,0.00027,7]
[381969929,1756461037996,-425.57542551,0.00027,7]
[381969931,1756461038005,-529.77114056,0.00027,7]
[381969933,1756461038014,-529.77114056,0.00027,7]
[381969935,1756461038027,-10000.0,0.00027123,2]
[381969937,1756461038036,-158.34,0.00027174,7]
[381969939,1756461038045,-158.34,0.00027274,7]
[381969941,1756461038055,-158.34,0.00027374,7]
[381969943,1756461038065,-500.0,0.00027397,5]
[381969945,1756461038074,-158.34,0.00027474,15]
[381969947,1756461038084,-304.492,0.00027474,16]
[381969949,1756461038093,-158.34,0.00027574,15]
[381969951,1756461038103,-158.36319839,0.00027674,15]
[381969953,1756461038113,-194.601038,0.00027843,2]
[381969955,1756461038123,-6245.5424211,0.00027891,2]
[381969958,1756461038132,-500.0,0.0002794,5]
[381969960,1756461038141,-275.8955373,0.0002794,5]
[381969962,1756461038152,-160.0,0.00028,7]
[381969964,1756461038161,-160.0,0.00028,3]
[381969966,1756461038170,-160.0,0.00028,7]
[381969968,1756461038180,-232.6790651,0.00028,7]
[381969970,1756461038190,-232.6790651,0.00028,7]
[381969972,1756461038199,-1000.0,0.00028503,30]
[381969974,1756461038208,-666.0,0.0002876,2]
[381969976,1756461038217,-5000.0,0.00029914,3]
[381969978,1756461038226,-609.0,0.00029918,60]
[381969980,1756461038236,-241.17,0.0002998,10]
[381969982,1756461038245,-200.98,0.0002998,10]
[381969984,1756461038255,-167.48,0.0002998,10]
[381969986,1756461038265,-469.00324286,0.00029989,2]
[381969988,1756461038274,-198.67991338,0.00029989,2]
[381969990,1756461038283,-500.0,0.00029989,2]
[381969992,1756461038293,-500.0,0.00029989,2]
[381969994,1756461038302,-500.0,0.00029989,2]
[381969996,1756461038311,-500.0,0.00029989,2]
[381969998,1756461038320,-155.55553367,0.00029989,2]
[381970000,1756461038330,-500.0,0.00029989,2]
[381970002,1756461038339,-500.0,0.00029989,2]
[381970004,1756461038348,-468.11728671,0.00029989,2]
[381970006,1756461038358,-500.0,0.00029989,2]
[381970008,1756461038367,-500.0,0.00029989,2]
[381970010,1756461038376,-497.16871284,0.00029989,2]
[381970012,1756461038386,-500.0,0.00029989,2]
[381970014,1756461038395,-446.71197987,0.00029989,2]
[381970016,1756461038404,-500.0,0.00029989,2]
[381970018,1756461038413,-500.0,0.00029989,2]
[381970020,1756461038423,-629.79739709,0.00029989,2]
[381970022,1756461038432,-500.0,0.00029989,2]
[381970024,1756461038441,-500.0,0.00029989,2]
[381970026,1756461038450,-500.0,0.00029989,2]
[381970028,1756461038459,-500.0,0.00029989,2]
[381970030,1756461038468,-107326.960668,0.0002999,2]
[381970031,1756461038478,-256.55095385,0.0002999,2]
[381970033,1756461038488,-462.73,0.0003,7]
[381970035,1756461038497,-10000.0,0.00030024,60]
[381970037,1756461038507,-1013.43944272,0.00030027,10]
[381970039,1756461038516,-162.940908,0.00031311,2]
[381970041,1756461038525,-194.601038,0.00032409,2]
[381970043,1756461038537,-232.6790651,0.0003382,2]
[381970045,1756461038546,-425.57542551,0.00033833,2]
[381970047,1756461038556,-845.57753514,0.00033833,2]
[381970049,1756461038566,-160.0,0.00033833,2]
[381970051,1756461038575,-160.0,0.00033833,2]
[381970053,1756461038585,-217.30324474,0.00033833,2]
[381970055,1756461038594,-632.0,0.00034033,2]
[381970057,1756461038603,-2151.0,0.00034033,2]
[381970059,1756461038612,-150.134,0.00034033,2]
[381970061,1756461038622,-409.0,0.00034033,2]
[381970063,1756461038631,-219467.06918764,0.00035586,7]
[381970182,1756461039832,-137524.20338117,0.00035586,7]
[381970187,1756461039876,-485.22174974,0.00035586,7]
[381970189,1756461039887,-10989.99999999,0.00035586,7]
[381970457,1756461042917,-837.43,0.00035576,10]
[381970458,1756461042927,-211.86,0.00035586,7]
[381970760,1756461046145,-5000.0,0.00024953,6]
[381970762,1756461046155,-9655.19568146,0.00035586,7]
[381970764,1756461046166,-90635.27294369,0.00035596,3]
[381970766,1756461046178,-16691.68772431,0.00035596,3]
[381970768,1756461046188,-256.55095385,0.00035596,3]
[381970770,1756461046198,-845.57753514,0.00035605,7]
[381970772,1756461046208,-845.57753514,0.00035606,3]
[381970774,1756461046218,-529.77114056,0.00035606,3]
[381970776,1756461046228,-217.30324474,0.00035606,3]
[381970779,1756461046238,-160.0,0.00035606,3]
[381970781,1756461046247,-216.21406313,0.00035606,3]
[381970783,1756461046257,-68907.19953453,0.00035606,3]
[381971336,1756461104100,437.972793,0.00024204,2]
[381971338,1756461395866,195.229797,0.00013699,2]
[381971340,1756462047102,-300.0,0.00018705,2]
[381971341,1756462047122,-4293.19100821,0.00018706,2]
[381971342,1756462050126,-9912.54785589,0.00018706,2]
[381971343,1756462050146,-5000.0,0.00018719,2]
[381971344,1756462050166,-300.0,0.00018907,2]
[381971345,1756462050186,-300.0,0.00018907,2]
[381971346,1756462050211,-1200.0,0.00018907,2]
[381971347,1756462050232,-1200.0,0.00019099,2]
[381971348,1756462050257,-3000.0,0.000192,2]
[381971349,1756462050291,-1467.497371,0.00019268,2]
[381971350,1756462050324,-412.47672382,0.00019734,2]
[381971354,1756462159137,-170.0417776,0.00018799,2]
[381971355,1756462159159,-2757.0033206,0.000192,2]
[381971356,1756462159182,-234.2416049,0.00019337,2]
[381971357,1756462159204,-234.24160487,0.00019424,2]
[381971358,1756462159226,-234.24160487,0.00019511,2]
[381971359,1756462159247,-5000.0,0.00019537,2]
[381971360,1756462159270,-234.24160487,0.00019598,2]
[381971361,1756462159291,-300.0,0.00019733,2]
[381971362,1756462159313,-13675.39688161,0.00019734,2]
[381971363,1756462161099,-234.24160487,0.00019685,2]
[381971364,1756462161121,-2127.68898527,0.00019734,2]
[381971365,1756462161142,-50000.0,0.00019785,2]
[381971366,1756462161164,-195.229797,0.00020187,2]
[381971367,1756462161186,-2156.0,0.0002026,2]
[381971368,1756462161210,-1680.0,0.00020711,2]
[381971369,1756462161233,-1680.0,0.00020816,2]
[381971370,1756462161254,-374.0,0.00021493,2]
[381971371,1756462161275,-10000.0,0.00021577,2]
[381971372,1756462161296,-1440.0,0.00022095,2]
[381971373,1756462161316,-1120.0,0.00022687,2]
[381971374,1756462161338,-2351.0,0.00022687,2]
[381971375,1756462161365,-1004.947223,0.00023346,2]
[381971376,1756462161385,-500.0,0.00024286,2]
[381971377,1756462161407,-243.593,0.00024638,7]
[381971378,1756462161430,-155.39499642,0.000248,2]
[381971379,1756462161452,-230.89585847,0.000248,2]
[381971380,1756462161474,-156.3889533,0.00024899,2]
[381971381,1756462161495,-500.0,0.00024899,2]
[381971382,1756462161516,-483.00725851,0.00024899,2]
[381971383,1756462161540,-500.0,0.00024899,2]
[381971384,1756462161564,-160.74577554,0.00024899,2]
[381971385,1756462161587,-500.0,0.00024899,2]
[381971386,1756462161612,-500.0,0.00024899,2]
[381971387,1756462161634,-500.0,0.00024899,2]
[381971388,1756462161657,-500.0,0.00024899,2]
[381971389,1756462161679,-500.0,0.00024899,2]
[381971390,1756462161702,-279.17618571,0.00024899,2]
[381971391,1756462161722,-500.0,0.00024899,2]
[381971392,1756462161743,-500.0,0.00024899,2]
[381971393,1756462161765,-538.2868982,0.00024899,2]
[381971394,1756462161787,-500.0,0.00024899,2]
[381971395,1756462161808,-500.0,0.00024899,2]
[381971396,1756462161828,-500.0,0.00024899,2]
[381971397,1756462161849,-500.0,0.00024899,2]
[381971398,1756462161871,-14804.76472135,0.000249,2]
[381971399,1756462167082,-13049.13079862,0.000249,2]
[381971400,1756462200680,666.0,0.0002399,2]
[381971401,1756462228625,1000.0,0.00023968,2]
[381971504,1756462236712,-3800.0,0.00024651,2]
[381971507,1756462236723,-1200.0,0.00024651,2]
[381971509,1756462236732,-300.0,0.00024899,2]
[381971511,1756462236742,-1200.0,0.00024899,2]
[381971513,1756462236751,-300.0,0.00024899,2]
[381971515,1756462236761,-300.0,0.00024899,2]
[381971517,1756462236770,-68141.78341433,0.000249,2]
[381971519,1756462236781,-361.03,0.00024935,2]
[381971520,1756462236791,-737.46176166,0.00024942,2]
[381971522,1756462236801,-30228.13967474,0.0002499,2]
[381971525,1756462236811,-586.57513175,0.00025002,2]
[381971527,1756462236821,-226.47632202,0.00025002,2]
[381971528,1756462236830,-30846.1328056,0.00025003,2]
[381971554,1756462238027,-20812.45091556,0.00025003,2]
[381971555,1756462238081,-4471.5819885,0.00025003,2]
[381971560,1756462238135,-2060.35663519,0.00025003,2]
[381971562,1756462238367,-2532.50243897,0.00025003,2]
[381971575,1756462240244,-10996.00000002,0.00025003,2]
[381971576,1756462240302,-24276.65415046,0.00025003,2]
[381971577,1756462240312,-230.89585847,0.00025003,2]
[381971578,1756462240322,-138997.25562617,0.00025026,2]
[381971635,1756462244186,-434.92,0.00025026,2]
[381971650,1756462246033,-52559.18224283,0.00025026,2]
[381971652,1756462246043,-461.79171694,0.00025026,2]
[381971654,1756462246053,-97003.8,0.00025036,2]
[381971656,1756462246063,-708.67,0.000251,7]
[381971658,1756462246075,-2874.76,0.000251,7]
[381971660,1756462246085,-300.2267524,0.00025857,2]
[381971662,1756462246094,-392.761323,0.00026316,2]
[381971664,1756462246103,-195.229797,0.00026676,2]
[381971666,1756462246113,-872.3609045,0.00026977,2]
[381971668,1756462246122,-193.0,0.00026977,2]
[381971670,1756462246131,-425.57542551,0.00027,7]
[381971672,1756462246140,-529.77114056,0.00027,7]
[381971674,1756462246150,-529.77114056,0.00027,7]
[381971676,1756462246160,-394.39,0.000278,7]
[381971678,1756462246170,-1467.497371,0.00028902,2]
[381971680,1756462246179,-399.50325567,0.00029089,2]
[381971682,1756462246189,-392.761323,0.0002974,2]
[381971684,1756462246198,-160.0,0.00029819,2]
[381971686,1756462246207,-217.30324474,0.00029819,2]
[381971688,1756462246217,-425.57542551,0.0002988,2]
[381971690,1756462246226,-845.57753514,0.0002988,2]
[381971692,1756462246236,-597.0,0.00030027,60]
[381971694,1756462246245,-708.67,0.000301,7]
[381971697,1756462246255,-2874.76,0.000323,7]
[381971699,1756462246265,-425.57542551,0.000323,7]
[381971700,1756462246274,-217.30324474,0.000323,7]
[381971703,1756462246284,-216.21406313,0.000323,7]
[381971705,1756462246293,-195.229797,0.00033165,2]
[381971707,1756462246303,-392.761323,0.00033165,2]
[381971708,1756462246312,-172.6586968,0.000332,117]
[381971710,1756462246321,-249.63524892,0.00034022,7]
[381971712,1756462246330,-95995.6789343,0.00034023,2]
[381971714,1756462246339,-230.89585847,0.00034023,2]
[381971716,1756462246348,-2151.0,0.00034033,2]
[381971717,1756462246358,-632.0,0.00034033,2]
[381971718,1756462246367,-628.57717556,0.00034033,2]
[381971719,1756462246381,-409.0,0.00034125,2]
[381971720,1756462246391,-151.0,0.00034471,7]
[381971721,1756462246401,-3408.7503379,0.00034481,2]
[381971722,1756462246411,-21659.268768,0.00034481,2]
[381971723,1756462246421,-151.0,0.00034481,7]
[381971724,1756462246430,-151.0,0.00034481,7]
[381971725,1756462246439,-151.0,0.00034481,7]
[381971726,1756462246448,-500.0,0.00034481,2]
[381971727,1756462246458,-500.0,0.00034755,2]
[381971728,1756462246469,-539.0,0.00035,30]
[381971729,1756462246479,-168.0,0.00035077,2]
[381971730,1756462246489,-168.0,0.00035081,2]
[381971731,1756462246499,-168.0,0.00035105,2]
[381971732,1756462246508,-168.0,0.00035288,2]
[381971733,1756462246518,-394.39,0.000353,7]
[381971734,1756462246529,-168.0,0.00035311,2]
[381971735,1756462246540,-173.80944419,0.00035516,2]
[381971736,1756462246551,-168.0,0.00035552,2]
[381971737,1756462246560,-230.89585847,0.00035596,3]
[381971738,1756462246571,-160.0,0.00035606,3]
[381971739,1756462246581,-425.57542551,0.00035606,3]
[381971740,1756462246591,-845.57753514,0.00035606,3]
[381971741,1756462246600,-1385.37515082,0.00035606,3]
[381971742,1756462246610,-364.45467805,0.00035616,2]
[381971743,1756462246620,-160.0,0.00035616,10]
[381971744,1756462246629,-160.0,0.00035616,10]
[381971745,1756462246639,-232.6790651,0.00035616,10]
[381971746,1756462246648,-577.9607534,0.00035616,10]
[381971747,1756462246658,-160.0,0.00035616,10]
[381971748,1756462246668,-322.56878016,0.00035616,10]
[381971749,1756462246678,-480.0,0.00035616,10]
[381971750,1756462246687,-482.18950042,0.00035616,10]
[381971751,1756462246697,-482.78066641,0.00035616,10]
[381971752,1756462246707,-480.0,0.00035616,10]
[381971753,1756462246716,-480.0,0.00035616,10]
[381971754,1756462246725,-483.71656094,0.00035616,10]
[381971755,1756462246735,-481.75211211,0.00035616,10]
[381971756,1756462246744,-480.0,0.00035616,10]
[381971757,1756462246753,-481.77442234,0.00035616,10]
[381971758,1756462246763,-481.40718584,0.00035616,10]
[381971759,1756462246772,-480.0,0.00035616,10]
[381971760,1756462246781,-480.0,0.00035616,10]
[381971761,1756462246791,-482.49536347,0.00035616,10]
[381971762,1756462246803,-480.0,0.00035616,10]
[381971763,1756462246813,-480.0,0.00035616,10]
[381971764,1756462246822,-482.57100227,0.00035616,10]
[381971765,1756462246832,-235.57006578,0.00035616,10]
[381971766,1756462246841,-480.0,0.00035616,10]
[381971767,1756462246851,-480.80820333,0.00035616,10]
[381971768,1756462246861,-480.0,0.00035616,10]
[381971769,1756462246871,-481.61812734,0.00035616,10]
[381971770,1756462246880,-480.0,0.00035616,10]